[Event "8th Ali Ipek Tournament 2020"]
[Site "Ankara"]
[Date "2020.03.04"]
[Round "1.5"]
[White "Ozkaner, Mehmet Kerem"]
[Black "Akin, Yagiz Cinar"]
[Result "0-1"]
[ECO "B07"]
[WhiteElo "1216"]
[BlackElo "1861"]
[Annotator "NA RC"]
[PlyCount "128"]
[EventDate "2020.03.04"]
[EventType "swiss"]
[EventCountry "TUR"]
[SourceTitle "playchess.com"]
[Source "ChessBase"]
[SourceQuality "1"]
[TimeControl "5400+30"]

{[%evp 8,127,33,29,32767,36,31,27,72,37,41,32767,32767,32767,32767,32767,71,23,39,16,15,0,14,14,0,-8,17,-25,19,25,20,13,37,15,64,5,32,48,33,22,25,30,33,9,32767,6,31,25,57,0,52,-20,60,20,60,-20,32767,32767,56,-27,14,7,2,-75,-6,-7,0,-114,-13,-71,0,-124,-48,-51,-28,-32,-20,-54,0,0,0,0,28,-66,21,-95,-102,-227,-291,-263,-46,-393,-537,-500,-445,-425,-82,-120,-78,-320,-41,-336,-445,-364,0,-261,-268,-311,0,-1057,32767,-2417,-2671,-29992,-29993,-29993,-29993,-29993,-29993,-29993,-29993,-29999]} 1. e4 {[%emt 0:00:30]} g6 {[%emt 0:00:30]} 2. d4 {[%emt 0:00:30]} Bg7 {[%emt 0:00:00]} 3. Nf3 {[%emt 0:03:30]} d6 {[%emt 0:00:00]} 4. Bd3 {[%emt 0:03:30]} Nf6 {[%emt 0:00:30]} 5. O-O {[%emt 0:02:30]} O-O {[%emt 0:00:30]} 6. h3 {[%emt 0:02:30]} c5 {[%emt 0:01:30]} 7. c3 {[%emt 0:08:30]} Qc7 {[%emt 0:04:30]} 8. Be3 {[%emt 0:03:30]} a6 {[%emt 0:03:30] B07: Pirc Defence: Miscellaneous Systems.} 9. a4 {[%emt 0:01:30]} b6 {[%emt 0:05:30]} 10. Nbd2 {[%emt 0:02:30]} Bb7 {[%emt 0:00:30]} 11. d5 {[%emt 0:01:30] [#]} e6 $146 {[%emt 0:03:30]} ({Predecessor:} 11... Nbd7 12. c4 Nh5 13. Rb1 Ne5 14. Be2 Nxf3+ 15. Nxf3 Nf6 16. Qc2 Bc8 17. Bf4 e5 18. dxe6 Bxe6 {1-0 (38) Perry,R (2005)-Wolstencroft,A Auckland 2016}) 12. c4 {[%emt 0:02:30]} Nbd7 {[%emt 0:00:30]} 13. Ng5 {[%emt 0:02:30]} exd5 {[%emt 0:00:30]} 14. exd5 {[%emt 0:02:30]} Ne5 {[%emt 0:00:00]} 15. Bc2 {[%emt 0:01:30]} b5 {[%emt 0:00:00]} 16. b3 {[%emt 0:01:30]} Rfe8 {[%emt 0:02:30]} 17. Rb1 {[%emt 0:01:30]} h6 {[%emt 0:01:30]} (17... bxa4 $15 18. bxa4 a5) 18. Ngf3 {[%emt 0:01:30]} Nfd7 {[%emt 0:00:30]} 19. Nxe5 {[%emt 0:01:30]} Nxe5 {[%emt 0:00:30]} 20. Re1 {[%emt 0:02:30]} Nd7 {[%emt 0:19:30]} 21. Bd3 {[%emt 0:13:30]} ({White should try} 21. Ne4 $14) 21... Re7 {[%emt 0:05:30]} 22. Bf4 {[%emt 0:03:30]} Ne5 {[%emt 0:02:30]} 23. Bxe5 {[%emt 0:00:30]} Rxe5 {[%emt 0:00:30]} 24. Rxe5 {[%emt 0:00:30]} dxe5 {[%emt 0:00:00]} 25. f3 {[%emt 0:04:30]} f5 {[%emt 0:02:00]} 26. Kh1 {[%emt 0:07:30]} Qe7 {[%emt 0:01:30]} 27. Qe2 {[%emt 0:03:30]} Qg5 {[%emt 0:00:30]} 28. Re1 {[%emt 0:01:30]} Rf8 {[%emt 0:01:30]} 29. Qe3 {[%emt 0:02:27]} (29. axb5 $16 axb5 30. cxb5) 29... Qh4 {[%emt 0:00:30]} (29... Qxe3 $11 30. Rxe3 bxc4 31. bxc4 Rb8) 30. Rf1 {[%emt 0:02:10]} {Black should try} Rc8 $11 {[%emt 0:01:30]} 31. Qe2 {[%emt 0:03:36]} (31. cxb5 $16 axb5 32. Bxb5) 31... Kh8 {[%emt 0:03:30]} 32. Qe3 {[%emt 0:00:28]} h5 {[%emt 0:01:30]} 33. Nb1 {[%emt 0:02:00]} ({Better is} 33. cxb5 $14 axb5 34. Bxb5) 33... Qd4 {[%emt 0:01:30]} 34. Qxd4 {[%emt 0:00:37]} cxd4 {[%emt 0:00:30]} 35. Na3 {[%emt 0:02:35]} (35. Re1 $11) 35... b4 {[%emt 0:05:30]} (35... bxc4 $17 36. bxc4 Bf8) 36. Nc2 {[%emt 0:00:48]} a5 {[%emt 0:00:00]} 37. Re1 {[%emt 0:00:29] [#]} (37. g4 $11 {keeps the balance.}) 37... Rd8 {[%emt 0:01:00]} (37... h4 $1 $17) 38. Re2 {[%emt 0:00:53]} Bf6 {[%emt 0:00:30]} (38... h4 $17) 39. Re1 {[%emt 0:01:40] [#]} (39. g4 $1 $11) 39... Kg7 {[%emt 0:00:30]} (39... h4 $1 $17 40. Re2 Kg8) 40. g3 {[%emt 0:00:12]} Kh6 {[%emt 0:02:30]} 41. Kg2 {[%emt 0:01:02]} Bc8 {[%emt 0:01:30]} 42. Re2 {[%emt 0:00:58]} h4 {[%emt 0:05:30]} (42... g5 $15 43. Rf2 Kg7) 43. g4 {[%emt 0:01:03]} Kg5 {[%emt 0:03:30]} 44. Ne1 {[%emt 0:00:55]} Kh6 {[%emt 0:04:01]} 45. Kh2 {[%emt 0:00:51]} (45. f4 $14 exf4 46. gxf5) 45... e4 {[%emt 0:00:35] [#]} ({Black should try} 45... Bg5 $15) 46. fxe4 {[%emt 0:01:07]} (46. g5+ $1 $11 {[%mdl 512] remains equal.} Kxg5 (46... Bxg5 47. fxe4) 47. fxe4) 46... Be5+ {[%emt 0:00:02]} 47. Kg2 $2 {[%emt 0:00:32]} ({White should play} 47. Kh1 $1 $15 fxg4 48. Rf2) 47... fxg4 {[%emt 0:00:04]} 48. hxg4 {[%emt 0:00:16] [#]} Bxg4 $2 {[%emt 0:00:09]} ({Better is} 48... Rf8 $1 $19 49. Kg1 Bxg4) 49. Rd2 $2 {[%emt 0:00:55]} (49. Rf2 $15) 49... h3+ {[%emt 0:00:51]} 50. Kh1 {[%emt 0:00:25]} Bg3 {[%emt 0:00:09]} 51. Nc2 {[%emt 0:01:38]} Bf3+ $2 {[%emt 0:01:48]} (51... Rf8 $19 {is more deadly.} 52. Nxd4 Be5) 52. Kg1 {[%emt 0:00:07] [#]} Be5 $2 {[%emt 0:01:34]} (52... Rf8 $1 $19 {is more deadly.} 53. Nxd4 Bg4) 53. c5 $2 {[%emt 0:01:18]} (53. Rf2 $17 {was called for.} Rf8 54. Ne1 h2+ 55. Rxh2+ Bxh2+ 56. Kxh2) 53... Rc8 $2 {[%emt 0:02:34]} ({Black should try} 53... Bg4 $19 54. Bb5 Rc8) 54. c6 $2 {[%emt 0:01:28]} (54. Ne1 $1 $15 Bh5 55. c6) 54... g5 {[%emt 0:00:05]} 55. Ne1 {[%emt 0:00:06]} Bg4 $2 {[%emt 0:00:58]} (55... g4 $19 56. Nxf3 gxf3) 56. Rc2 $2 {[%emt 0:00:36] [#]} (56. Be2 $11 h2+ 57. Kh1) 56... Kg7 $1 {[%emt 0:00:52]} 57. Ba6 {[%emt 0:00:15]} Rc7 $2 {[%emt 0:00:39]} (57... Ra8 $19 58. Bf1 Rf8) 58. Rc5 $2 {[%emt 0:00:28]} (58. Nd3 $11 Bg3 59. Nf2) 58... d3 {[%emt 0:00:16]} 59. Nxd3 {[%emt 0:00:54]} h2+ {[%emt 0:00:45]} 60. Kf2 {[%emt 0:00:06]} Rf7+ {[%emt 0:00:00]} 61. Ke3 {[%emt 0:00:40]} h1=Q {[%emt 0:00:02]} 62. Nxe5 {[%emt 0:00:40]} Qg1+ {[%emt 0:00:30]} 63. Kd3 {[%emt 0:00:31]} Qxc5 {[%emt 0:00:00]} 64. Nxf7 {[%emt 0:00:25]} Qc3# {[%emt 0:00:12]} 0-1

[Event "8th Ali Ipek Tournament 2020"]
[Site "Ankara"]
[Date "2020.03.04"]
[Round "1.8"]
[White "Celik, Berkay"]
[Black "Erdem, Emirhan"]
[Result "1/2-1/2"]
[ECO "D58"]
[WhiteElo "1870"]
[BlackElo "1281"]
[Annotator "NA RC"]
[PlyCount "158"]
[EventDate "2020.03.04"]
[EventType "swiss"]
[EventCountry "TUR"]
[SourceTitle "playchess.com"]
[Source "ChessBase"]
[SourceQuality "1"]
[TimeControl "5400+30"]

{[%evp 8,158,12,10,32767,32767,9,0,25,9,9,0,0,0,0,-9,22,18,46,52,45,32767,32767,32767,32767,32767,32767,131,32767,32767,32767,32767,32767,32767,32767,32767,32767,12,43,0,40,-112,-68,-119,-43,-128,0,32767,19,-174,-196,32767,32767,32767,32767,-197,-70,-90,-80,-118,-93,-114,0,0,0,0,0,0,0,0,24,0,26,0,48,43,32767,32767,32767,-545,-568,-523,-601,-536,-575,-569,-540,-765,-714,-673,-819,-961,-909,-834,-1068,-936,-920,-1021,-12828,32767,32767,-1387,-1020,-918,-1112,-935,-1615,-1005,-1570,-1689,-5061,-366,-5469,-5306,-1204,-1149,-1356,-1214,-757,-5085,-29980,-6021,-29978,-29972,-12847,-29987,-29988,-29988,32767,32767,32767,32767,-12844,-12845,-12846,-29967,-11153,-5089,-29965,-29965,-29980,-29981,0,0,0,0,0,0,0,0,0,0,0]} 1. d4 {[%emt 0:00:30]} d5 {[%emt 0:00:30]} 2. c4 {[%emt 0:00:30]} e6 {[%emt 0:00:30]} 3. Nc3 {[%emt 0:00:00]} Nf6 {[%emt 0:00:00]} 4. Bg5 {[%emt 0:00:00]} Be7 {[%emt 0:00:00]} 5. Nf3 {[%emt 0:00:00]} h6 {[%emt 0:01:30]} 6. Bh4 {[%emt 0:00:00]} O-O {[%emt 0:00:30]} 7. e3 {[%emt 0:01:30]} Nbd7 {[%emt 0:03:30]} 8. Bd3 {[%emt 0:00:30]} c5 {[%emt 0:02:30]} 9. O-O {[%emt 0:00:30]} b6 {[%emt 0:03:30]} 10. Rc1 {[%emt 0:01:30]} Bb7 {[%emt 0:01:30]} 11. Ne5 {[%emt 0:00:30] [#] D58: Queen's Gambit Declined: Tartakower Defence.} Nxe5 $146 {[%emt 0:02:30]} ({Predecessor:} 11... Rc8 12. b3 Nxe5 13. dxe5 Ne4 14. Bxe4 dxe4 15. Bxe7 Qxe7 16. Qg4 Qc7 17. Qg3 Bc6 18. Rcd1 Rfd8 {1-0 (58) Aysoy,V (1933)-Yalcindag,H (1417) Antalya 2019}) 12. dxe5 {[%emt 0:00:00]} Nd7 {[%emt 0:00:30]} 13. Bxe7 {[%emt 0:00:00]} Qxe7 {[%emt 0:00:30]} 14. f4 {[%emt 0:00:30]} a6 {[%emt 0:01:30]} 15. cxd5 {[%emt 0:00:00]} exd5 {[%emt 0:02:30]} 16. Bf5 {[%emt 0:00:00]} d4 {[%emt 0:09:30]} 17. exd4 {[%emt 0:01:30]} cxd4 {[%emt 0:01:30]} 18. Qxd4 {[%emt 0:00:00]} Nc5 {[%emt 0:00:00]} 19. b4 {[%emt 0:02:00]} Rad8 {[%emt 0:01:00]} 20. Qe3 {[%emt 0:00:00]} Ne6 {[%emt 0:01:30]} 21. Qxb6 {[%emt 0:00:00]} Rd2 {[%emt 0:01:30]} 22. Bh3 {[%emt 0:07:30]} (22. Rc2 $16 Rfd8 23. Rxd2 Rxd2 24. Be4 Bxe4 25. Nxe4) 22... Rfd8 {[%emt 0:05:30]} 23. a3 {[%emt 0:01:30]} R8d3 {[%emt 0:01:30]} (23... R8d4 $5 {[%cal Re6f4]} 24. g3 Nxf4 25. Rxf4 Qxe5 26. Qxb7 Rxf4 $14) 24. g3 {[%emt 0:01:30]} (24. Rcd1 $1 $11) 24... Nd4 {[%emt 0:01:30]} 25. Rf2 {[%emt 0:03:30]} Nf3+ {[%emt 0:01:30]} 26. Rxf3 {[%emt 0:01:30]} (26. Kf1 $1 $15) 26... Rxf3 {[%emt 0:02:30]} (26... Bxf3 $17 27. e6 Bb7) 27. Nb1 {[%emt 0:01:30]} Rb2 {[%emt 0:03:30]} 28. Qd4 $2 {[%emt 0:08:30] [#]} (28. Qd6 $1 $11 {and White is okay.} Qxd6 29. exd6) 28... Rff2 $1 {[%emt 0:09:30]} 29. Qxf2 {[%emt 0:00:30]} Rxf2 {[%emt 0:00:30]} 30. Kxf2 {[%emt 0:00:00]} Qd8 {[%emt 0:00:00]} 31. Ke2 {[%emt 0:14:00] [#]} Qd5 {[%emt 0:02:00]} (31... g5 $1 $19 32. Nd2 gxf4 33. gxf4 Qh4) 32. Nd2 {[%emt 0:00:30]} a5 {[%emt 0:02:30]} 33. Ke3 {[%emt 0:03:30]} axb4 {[%emt 0:01:30]} 34. axb4 {[%emt 0:00:00]} Qb5 {[%emt 0:02:30]} (34... Qa2 $17 35. Rb1 Qa7+ 36. Ke2 Qd4) 35. Rc4 {[%emt 0:01:00]} Qb6+ {[%emt 0:03:30]} 36. Rd4 {[%emt 0:00:30]} Qc7 {[%emt 0:01:30]} 37. Bf5 {[%emt 0:00:30]} g6 {[%emt 0:01:30]} 38. Bd3 {[%emt 0:00:30]} Qe7 {[%emt 0:01:30]} 39. Ne4 {[%emt 0:00:00]} g5 {[%emt 0:01:30]} 40. Nc5 {[%emt 0:01:00]} ({Better is} 40. Nd6 $16) 40... Bg2 {[%emt 0:01:30]} 41. Rd7 {[%emt 0:00:30]} gxf4+ {[%emt 0:00:30]} 42. gxf4 {[%emt 0:00:00]} Qh4 {[%emt 0:00:30]} 43. b5 $2 {[%emt 0:03:00]} (43. e6 $17 {is a better chance.} Qe1+ 44. Be2 fxe6 45. Nxe6 Qg1+ 46. Kd2) 43... Qe1+ {[%emt 0:01:30]} 44. Kd4 {[%emt 0:01:30]} Qb4+ {[%emt 0:03:30]} 45. Bc4 {[%emt 0:00:00]} Qb2+ {[%emt 0:01:30]} 46. Ke3 {[%emt 0:01:00]} Qc3+ {[%emt 0:00:30] Double Attack} 47. Bd3 {[%emt 0:00:30]} Qxc5+ {[%emt 0:00:30]} 48. Ke2 {[%emt 0:00:30]} Bh3 {[%emt 0:00:30]} 49. Rd6 {[%emt 0:00:30]} Bg4+ {[%emt 0:00:30]} 50. Kd2 {[%emt 0:00:00]} Qb4+ {[%emt 0:00:30]} 51. Ke3 {[%emt 0:00:00]} Qe1+ {[%emt 0:00:30]} 52. Kd4 {[%emt 0:00:30]} Qf2+ {[%emt 0:00:30]} 53. Kc3 {[%emt 0:01:30]} Qxf4 {[%emt 0:00:30]} 54. Rd5 {[%emt 0:02:30]} Qc1+ {[%emt 0:00:30]} 55. Kb4 {[%emt 0:00:30]} Qb2+ {[%emt 0:00:30]} 56. Kc5 {[%emt 0:00:30]} Be6 {[%emt 0:00:30]} 57. Rd4 {[%emt 0:01:30]} Qa3+ {[%emt 0:00:30]} 58. Kb6 {[%emt 0:00:30]} Qc3 {[%emt 0:00:30]} 59. Rd8+ {[%emt 0:00:30]} Kg7 {[%emt 0:00:30]} 60. Ka6 {[%emt 0:02:30]} Qa3+ {[%emt 0:01:30]} 61. Kb6 {[%emt 0:00:00]} Qe7 {[%emt 0:00:30]} 62. Rd6 {[%emt 0:01:00]} f6 {[%emt 0:00:30]} 63. exf6+ {[%emt 0:00:30]} Kxf6 {[%emt 0:00:30]} 64. Rc6 {[%emt 0:00:30]} Qd8+ {[%emt 0:00:30] Double Attack} 65. Ka7 {[%emt 0:07:30]} Qxd3 {[%emt 0:00:30]} 66. b6 {[%emt 0:00:00]} Qa3+ {[%emt 0:00:00]} 67. Kb8 {[%emt 0:00:00]} Qf8+ {[%emt 0:00:00]} 68. Ka7 {[%emt 0:00:30]} Qe7+ {[%emt 0:00:30]} 69. b7 {[%emt 0:00:00]} Kf7 {[%emt 0:00:30]} 70. Kb6 {[%emt 0:01:00]} Qd8+ {[%emt 0:00:30]} 71. Ka7 {[%emt 0:00:30]} Bd5 {[%emt 0:00:00]} 72. Rxh6 {[%emt 0:00:30]} Qa5+ {[%emt 0:01:00]} 73. Ra6 {[%emt 0:00:30] [#]} Qc7 $1 {[%emt 0:00:30]} 74. Rb6 {[%emt 0:00:00]} Bc6 $2 {[%emt 0:00:30] [#]} (74... Ke8 $19 75. h4 Kd7 76. Rb2 Qa5+ 77. Kb8 Be4 78. Rb3 Qd5 79. Rb6 Qe5+ 80. Ka7 Qa5+ 81. Ra6 Qc5+ 82. Rb6 Bd3 83. h5 Qa5+ 84. Ra6 Qxa6+ 85. Kb8 Be4 86. h6 Qxb7#) 75. Rxc6 $1 {[%emt 0:00:00]} Qxc6 {[%emt 0:01:30]} 76. b8=Q {[%emt 0:00:30]} Qa4+ {[%emt 0:00:00]} 77. Kb7 {[%emt 0:00:30]} Qb5+ {[%emt 0:00:00]} 78. Kc7 $11 {[%emt 0:00:00]} Qxb8+ {[%emt 0:00:30]} 79. Kxb8 {[%emt 0:00:00]} Kg6 {[%emt 0:00:00]} 1/2-1/2

[Event "8th Ali Ipek Tournament 2020"]
[Site "Ankara"]
[Date "2020.03.04"]
[Round "1.9"]
[White "Bakircay, Yakup"]
[Black "Alkan, Ferman"]
[Result "0-1"]
[ECO "C11"]
[WhiteElo "1388"]
[BlackElo "1858"]
[Annotator "NA RC"]
[PlyCount "98"]
[EventDate "2020.03.04"]
[EventType "swiss"]
[EventCountry "TUR"]
[SourceTitle "playchess.com"]
[Source "ChessBase"]
[SourceQuality "1"]
[TimeControl "5400+30"]

{[%evp 10,90,17,5,0,12,32767,7,3,-7,-15,0,1,-73,-99,-110,-84,-113,32767,32767,32767,32767,-80,32767,32767,32767,32767,32767,-100,-108,-110,-127,-153,-175,-159,-226,-293,-255,-280,32767,32767,32767,-405,-502,32767,-741,-671,-627,-513,-455,-571,-533,-652,-545,-630,-531,-669,-570,32767,32767,-629,32767,32767,-1603,32767,32767,-29964,32767,-29974,-29979,-29980,-29964,-29982,-29982,-29981,-29977,32767,32767,32767,32767,-29982,-12848,-29983]} 1. e4 {[%emt 0:00:30]} Nf6 {[%emt 0:00:30]} 2. Nc3 {[%emt 0:00:30]} d5 {[%emt 0:00:00]} 3. e5 {[%emt 0:00:00]} Nfd7 {[%emt 0:00:00]} 4. f4 {[%emt 0:00:00]} e6 {[%emt 0:00:30]} 5. Nf3 {[%emt 0:00:00]} c5 {[%emt 0:00:30]} 6. d4 {[%emt 0:00:00]} Nc6 {[%emt 0:00:00]} 7. Be3 {[%emt 0:00:30]} Be7 {[%emt 0:00:00]} 8. Qd2 {[%emt 0:01:30]} O-O {[%emt 0:09:30]} 9. Bd3 {[%emt 0:00:30] C11: French: Classical System: 4 e5 and 4 Bg5 dxe4.} f6 {[%emt 0:01:30]} 10. exf6 {[%emt 0:08:30]} Bxf6 {[%emt 0:00:30] [#]} 11. dxc5 $146 {[%emt 0:02:30]} ({Predecessor:} 11. Bb5 $11 {remains equal.} cxd4 12. Nxd4 Nxd4 13. Bxd4 Nb6 14. O-O-O Bd7 15. Qe3 Rc8 16. Rhe1 Rxc3 17. Qxc3 Bxb5 18. Rxe6 Bxd4 19. Qxd4 {½-½ (59) Bologan,V (2712)-Short,N (2698) Poikovsky 2012}) 11... d4 {[%emt 0:02:30]} 12. Nxd4 {[%emt 0:00:30]} Nxd4 {[%emt 0:01:30]} 13. Bxd4 {[%emt 0:00:30]} Bxd4 {[%emt 0:00:30]} 14. Bxh7+ {[%emt 0:00:00]} Kxh7 {[%emt 0:00:30]} 15. Qxd4 {[%emt 0:00:00]} Qf6 {[%emt 0:00:30]} 16. Qxf6 {[%emt 0:05:30]} Rxf6 {[%emt 0:00:30]} 17. O-O {[%emt 0:00:00]} Nxc5 {[%emt 0:00:30]} 18. Rad1 {[%emt 0:00:00]} a5 {[%emt 0:08:30]} 19. Rd8 {[%emt 0:00:30]} b6 {[%emt 0:00:30]} 20. Nb5 {[%emt 0:02:30]} Bb7 {[%emt 0:00:30]} 21. Rxa8 {[%emt 0:00:30]} Bxa8 {[%emt 0:00:30]} 22. Nc7 {[%emt 0:01:30]} (22. g3 $17) 22... Bc6 {[%emt 0:00:30]} 23. Re1 {[%emt 0:05:30]} Kg8 {[%emt 0:09:30]} ({Don't do} 23... Rxf4 24. Nxe6 Nxe6 25. Rxe6 $19) 24. g3 {[%emt 0:03:30]} g5 {[%emt 0:00:30]} 25. f5 {[%emt 0:02:30]} exf5 {[%emt 0:00:30]} 26. Ne8 {[%emt 0:00:30]} Rh6 {[%emt 0:02:30]} 27. a3 {[%emt 0:04:30]} Kf7 {[%emt 0:01:30]} 28. Nc7 {[%emt 0:00:30]} a4 {[%emt 0:01:30]} 29. Rd1 {[%emt 0:01:30]} f4 {[%emt 0:02:30]} 30. gxf4 {[%emt 0:03:30]} gxf4 {[%emt 0:00:30]} 31. Nd5 {[%emt 0:00:00]} Rd6 {[%emt 0:00:30]} 32. Nc3 {[%emt 0:03:00]} Rg6+ {[%emt 0:00:30]} 33. Kf1 {[%emt 0:00:00]} Ke6 {[%emt 0:00:30]} 34. Rd2 {[%emt 0:02:00]} Kf5 {[%emt 0:00:30]} 35. Rf2 {[%emt 0:00:30]} f3 {[%emt 0:01:30]} 36. Ke1 {[%emt 0:01:30]} Kf4 {[%emt 0:00:30]} 37. Ne2+ {[%emt 0:00:30]} Ke3 {[%emt 0:00:30]} 38. Ng3 {[%emt 0:00:00] [#]} Rxg3 $1 {[%emt 0:02:30]} 39. hxg3 {[%emt 0:00:00] [#]} Ne4 $1 {[%emt 0:00:30] Double Attack} 40. Rxf3+ {[%emt 0:02:30]} Kxf3 {[%emt 0:00:30]} 41. g4 {[%emt 0:00:30]} Ke3 {[%emt 0:00:00]} 42. Kd1 {[%emt 0:00:30]} Nf2+ {[%emt 0:00:00]} 43. Kc1 {[%emt 0:00:30]} Nxg4 {[%emt 0:00:30]} 44. b3 {[%emt 0:00:00]} Nf6 {[%emt 0:00:00]} 45. Kd1 $19 {[%emt 0:06:00]} Kd4 {[%emt 0:00:00]} 46. Kc1 {[%emt 0:05:30]} Kc3 {[%emt 0:00:30]} 47. Kb1 {[%emt 0:01:30]} axb3 {[%emt 0:00:30]} 48. cxb3 {[%emt 0:00:00]} Kxb3 {[%emt 0:00:30]} 49. a4 {[%emt 0:00:00]} Bxa4 {[%emt 0:00:30]} 0-1

[Event "8th Ali Ipek Tournament 2020"]
[Site "Ankara"]
[Date "2020.03.04"]
[Round "1.10"]
[White "Caberoglu, Arda"]
[Black "Unlu, Muhammet Ali"]
[Result "1-0"]
[ECO "C14"]
[WhiteElo "1784"]
[BlackElo "1290"]
[Annotator "NA RC"]
[PlyCount "56"]
[EventDate "2020.03.04"]
[EventType "swiss"]
[EventCountry "TUR"]
[SourceTitle "playchess.com"]
[Source "ChessBase"]
[SourceQuality "1"]
[TimeControl "5400+30"]

1. e4 {[%emt 0:10:30]} e6 {[%emt 0:00:30]} 2. d4 {[%emt 0:01:30]} d5 {[%emt 0:00:30]} 3. Nc3 {[%emt 0:00:30]} Nf6 {[%emt 0:00:00]} 4. Bg5 {[%emt 0:00:00]} Be7 {[%emt 0:00:00]} 5. e5 {[%emt 0:00:00]} Nfd7 {[%emt 0:00:00]} 6. Bxe7 {[%emt 0:00:00]} Qxe7 {[%emt 0:00:00]} 7. f4 {[%emt 0:00:00]} c5 {[%emt 0:00:30]} 8. Nf3 {[%emt 0:00:30]} Nc6 {[%emt 0:00:30]} 9. Bd3 {[%emt 0:00:30]} a6 {[%emt 0:04:30]} 10. O-O {[%emt 0:00:30]} c4 {[%emt 0:02:30]} 11. Be2 {[%emt 0:01:30]} O-O {[%emt 0:03:30]} 12. f5 {[%emt 0:00:00]} f6 {[%emt 0:05:30]} 13. fxe6 {[%emt 0:09:00]} Nb6 {[%emt 0:02:30]} 14. exf6 {[%emt 0:06:30]} Rxf6 {[%emt 0:00:30]} 15. Qd2 {[%emt 0:01:30]} Bxe6 {[%emt 0:01:30]} 16. Ng5 {[%emt 0:01:30]} Raf8 {[%emt 0:07:30]} 17. Rxf6 {[%emt 0:00:30]} Rxf6 {[%emt 0:01:30]} 18. Nxe6 {[%emt 0:00:30]} Qxe6 {[%emt 0:03:30]} 19. Bf3 {[%emt 0:00:30]} Ne7 {[%emt 0:06:30]} 20. Re1 {[%emt 0:01:30]} Qd7 {[%emt 0:01:30]} 21. a4 {[%emt 0:01:30]} Re6 {[%emt 0:03:30]} 22. a5 {[%emt 0:02:30]} Na8 {[%emt 0:01:30]} 23. Rxe6 {[%emt 0:01:30]} Qxe6 {[%emt 0:00:30]} 24. Kf2 {[%emt 0:00:30]} Nc7 {[%emt 0:00:30]} 25. Qf4 {[%emt 0:01:30]} Qd7 {[%emt 0:05:30]} 26. Qg5 {[%emt 0:08:30]} Kf8 {[%emt 0:05:30]} 27. Ne2 {[%emt 0:03:30]} Ne6 {[%emt 0:10:30]} 28. Qe5 {[%emt 0:01:30]} Qc7 {[%emt 0:05:30]} 1-0

[Event "8th Ali Ipek Tournament 2020"]
[Site "Ankara"]
[Date "2020.03.04"]
[Round "1.11"]
[White "Cicekli, Ruzgar"]
[Black "Ozsac, Samet Harun"]
[Result "0-1"]
[ECO "E90"]
[WhiteElo "1218"]
[BlackElo "1844"]
[Annotator "NA RC"]
[PlyCount "98"]
[EventDate "2020.03.04"]
[EventType "swiss"]
[EventCountry "TUR"]
[SourceTitle "playchess.com"]
[Source "ChessBase"]
[SourceQuality "1"]
[TimeControl "5400+30"]

{[%evp 9,94,30,32767,41,45,33,32767,32767,30,33,55,33,39,-2,32767,32767,32767,32767,-14,-16,-19,-7,32767,-6,0,0,32767,32767,32767,-7,32767,0,0,0,0,0,0,-18,0,-11,-14,-260,-266,-852,-205,-192,-197,-214,32767,-204,32767,32767,32767,32767,-353,-490,-537,-523,-576,-597,-554,-611,-505,-525,-591,-558,-481,-619,-610,-657,32767,-705,-897,-791,-964,-832,-845,-745,-943,-877,-1165,-1142,-983,-1166,-1013,-1155,-1448]} 1. d4 {[%emt 0:00:30]} Nf6 {[%emt 0:00:30]} 2. c4 {[%emt 0:00:00]} g6 {[%emt 0:00:30]} 3. Nc3 {[%emt 0:00:00]} Bg7 {[%emt 0:00:30]} 4. e4 {[%emt 0:00:30]} d6 {[%emt 0:00:00]} 5. Nf3 {[%emt 0:00:00]} Bg4 {[%emt 0:01:00]} 6. Be2 {[%emt 0:02:00]} Nfd7 {[%emt 0:02:30]} 7. O-O {[%emt 0:01:30] E90: King's Indian: Classical: Early deviations and 6 h3.} Bxf3 {[%emt 0:02:30]} 8. Bxf3 {[%emt 0:00:30]} Nc6 {[%emt 0:00:30]} 9. Be3 {[%emt 0:01:30]} e5 {[%emt 0:01:30]} 10. d5 {[%emt 0:03:30]} Nd4 {[%emt 0:00:30]} 11. Bxd4 {[%emt 0:00:30]} exd4 {[%emt 0:00:30]} 12. Nb5 {[%emt 0:00:00] [#]} d3 $146 {[%emt 0:00:30]} ({Predecessor:} 12... Ne5 13. Be2 d3 14. Bxd3 Nxd3 15. Qxd3 Bxb2 16. Rab1 Be5 17. f4 Bg7 {0-1 (49) Contreras Rodriguez,F (1904)-Coronado Paulino,K (1773) Santo Domingo 2016}) 13. Qxd3 {[%emt 0:01:00]} Bxb2 {[%emt 0:00:30]} 14. Rab1 {[%emt 0:00:30]} Bg7 {[%emt 0:01:30]} 15. Nd4 {[%emt 0:02:30]} Nc5 {[%emt 0:04:30]} 16. Qe3 {[%emt 0:01:30]} O-O {[%emt 0:01:30]} 17. Nb3 {[%emt 0:00:00]} Nxb3 {[%emt 0:02:30]} 18. Rxb3 {[%emt 0:01:00]} b6 {[%emt 0:00:30]} 19. Bd1 {[%emt 0:03:30]} Re8 {[%emt 0:03:30]} 20. Qf4 {[%emt 0:01:30]} Re5 {[%emt 0:03:30]} 21. Re3 {[%emt 0:04:30]} Qd7 {[%emt 0:04:30]} 22. Qg3 {[%emt 0:02:30]} a5 {[%emt 0:08:30]} 23. a4 {[%emt 0:03:30]} Rae8 {[%emt 0:02:30]} 24. Bc2 {[%emt 0:00:30]} R5e7 {[%emt 0:09:30]} 25. f4 $2 {[%emt 0:02:30]} (25. Qf4 $11 {and White is okay.}) 25... Bd4 {[%emt 0:00:30]} 26. f5 $2 {[%emt 0:01:30]} (26. Kh1 Bxe3 27. Qxe3) 26... Bxe3+ $2 {[%emt 0:01:30]} (26... Rxe4 27. Bxe4 Rxe4 {[%mdl 64] Pin}) 27. Qxe3 {[%emt 0:00:30]} Re5 {[%emt 0:04:30]} 28. Qh6 {[%emt 0:00:30]} Qe7 {[%emt 0:03:30]} 29. f6 {[%emt 0:02:30]} Qf8 {[%emt 0:00:00]} 30. Qf4 {[%emt 0:02:30]} h5 {[%emt 0:02:00]} 31. Rf3 {[%emt 0:00:30]} Kh7 {[%emt 0:00:30]} 32. g4 {[%emt 0:00:30]} (32. Kf2 {was called for.}) 32... Qh6 {[%emt 0:00:30]} 33. Kg2 {[%emt 0:01:30]} hxg4 {[%emt 0:02:30]} 34. Qxh6+ {[%emt 0:01:30]} Kxh6 {[%emt 0:00:00]} 35. Rf4 {[%emt 0:00:00]} g5 {[%emt 0:01:00]} 36. Rxg4 {[%emt 0:00:00]} Kg6 {[%emt 0:00:30]} 37. Rg3 {[%emt 0:00:30]} Kxf6 {[%emt 0:00:30]} 38. Rh3 {[%emt 0:00:00]} Kg7 {[%emt 0:00:00]} 39. Kf3 {[%emt 0:01:00]} Rh8 {[%emt 0:00:00]} 40. Rxh8 {[%emt 0:00:30]} Kxh8 {[%emt 0:00:30]} 41. Ke3 {[%emt 0:00:00]} f5 {[%emt 0:00:00]} 42. Kd4 {[%emt 0:00:00]} fxe4 {[%emt 0:00:00]} 43. Bxe4 {[%emt 0:00:30]} Kg7 {[%emt 0:00:00]} 44. h3 {[%emt 0:00:30]} Kf6 {[%emt 0:00:00]} 45. Bf3 {[%emt 0:00:30]} Kf5 {[%emt 0:00:30]} 46. Bg4+ {[%emt 0:00:00]} Kf4 {[%emt 0:00:00]} 47. Be6 {[%emt 0:01:00]} Re1 $19 {[%emt 0:00:00]} 48. Kc3 {[%emt 0:02:30]} Kg3 {[%emt 0:00:30]} 49. Kb3 {[%emt 0:00:30]} Rh1 {[%emt 0:00:30]} 0-1